Cogmind - Beta 15 @@@ ROGUE MODE // 2025.06.17 @ 16:15:00 // Halloween2020/ForbiddenLore Player: Storm Mk9 Result: Destroyed by as-49376 with Assembled Blade Performance ------------- Evolutions (0) 0 Regions Visited (4) 800 Robots Destroyed (17) 85 Value Destroyed (241) 241 Prototype IDs (23) 460 Alien Tech Used (0) 0 Bonus (300) 300 TOTAL SCORE: 1886 Bonus ------- Aligned with FarCom 300 Cogmind --------- Core Integrity 0/250 Matter 280/300 Energy 40/100 System Corruption 0% Temperature Cool (20) Movement Core (250) Ox4 Location -9/Mines Parts ------- > --- POWER (1) -------- (None) > --- PROPULSION (2) --- (None) > --- UTILITY (2) ------ Medium Storage Unit > --- WEAPON (2) ------- Light Assault Rifle Spear > --- INVENTORY (10) --- Light Ion Engine Heat Sink Large Matter Pod (150) Advanced Terrain Scan Processor Skeleton Box Improved Trap Extractor (0/6) Peak State ------------ > --- POWER ------------ Micro Nuclear Core > --- PROPULSION ------- Aluminum Leg Aluminum Leg > --- UTILITY ---------- Medium Storage Unit Seismic Detector > --- WEAPON ----------- Heavy Laser Light Assault Rifle > --- INVENTORY -------- Light Ion Engine Aluminum Leg Heat Sink Large Matter Pod Advanced Terrain Scan Processor Skeleton Box Improved Trap Extractor Light Assault Rifle Hammer [Rating: 15] Favorites ----------- Power Ion Engine Engine Ion Engine Power Core Micro Nuclear Core Propulsion Aluminum Leg Leg Aluminum Leg Utility Seismic Detector Device Seismic Detector Storage Medium Storage Unit Protection Medium Reflective Plating Weapon Light Assault Rifle Energy Gun EM Pulse Gun Ballistic Gun Light Assault Rifle Piercing Weapon Spear Build | -11 -10 -10 -10 -9 ------- Run | Yrd Mat Min Exi Min Slots Evolved . | . . . . . Power . | . . . . . Propulsion . | . . . . . Utility . | . . . . . Weapon . | . . . . . Parts Attached 17 | 8 2 1 . 6 Power 3 | 1 1 . . 1 Engine 2 | 1 1 . . . Core 1 | . . . . 1 Reactor . | . . . . . Propulsion 3 | 2 . . . 1 Treads . | . . . . . Leg 3 | 2 . . . 1 Wheel . | . . . . . Hover . | . . . . . Flight . | . . . . . Utility 4 | 2 1 . . 1 Device 1 | 1 . . . . Storage 2 | 1 1 . . . Processor . | . . . . . Hackware . | . . . . . Protection 1 | . . . . 1 Artifact . | . . . . . Weapon 7 | 3 . 1 . 3 Energy Gun 2 | 1 . . . 1 Energy Cannon . | . . . . . Ballistic Gun 4 | 2 . 1 . 1 Ballistic Cannon . | . . . . . Launcher . | . . . . . Special Weapon . | . . . . . Impact Weapon . | . . . . . Slashing Weapon . | . . . . . Piercing Weapon 1 | . . . . 1 Special Melee Weapon . | . . . . . Unidentified Prototypes . | . . . . . Parts Lost 11 | . 1 2 . 8 Power 2 | . 1 . . 1 Propulsion 3 | . . . . 3 Utility 1 | . . . . 1 Weapon 5 | . . 2 . 3 Highest Loss Streak 4 | . 1 2 . 4 To Critical Strikes . | . . . . . Average Backups 5 | 2 5 5 5 7 Power 1 | . 1 1 1 1 Propulsion . | . . . 1 . Utility 2 | . 1 2 2 3 Weapon 1 | 1 1 1 1 1 Tool/Special . | . . . . . Unused Backups 7 | . . . . 7 Power 1 | . . . . 1 Propulsion . | . . . . . Utility 4 | . . . . 4 Weapon 1 | . . . . 1 Tool/Special 1 | . . . . 1 Average Slot Usage (%) 98 | . 100 98 100 95 Engine 11 | . 14 14 14 7 Core 2 | . . . . 5 Leg 27 | . 28 28 28 26 Device 14 | . 14 14 14 14 Storage 14 | . 14 14 14 14 Energy Gun 7 | . . 8 14 6 Ballistic Gun 19 | . 28 17 14 19 Peak Build Rating 15 | 7 7 7 8 15 Average Rating 8 | 5 6 6 7 10 On Entrance 5 | . 7 7 7 8 Naked Turns . | . . . . . Heaviest Build 22 | 14 19 19 19 22 Greatest Support 20 | 20 20 20 20 20 Greatest Overweight (x) 2 | . . . . 2 Average Overweight (x) . | . . . . . Largest Inventory Capacity 10 | 8 10 10 10 10 Average Capacity 9 | 7 8 10 10 10 Most Carried 10 | 5 7 6 6 10 Average Carried 5 | 2 5 5 5 7 Final Capacity 10 | 8 10 10 10 10 Final Carried 6 | 2 5 5 6 6 Class Distribution -------------------- 100% | Mutant Dominant Class ---------------- Mutant | -10/Materials Mutant | -10/Mines Mutant | -10/Exiles Mutant | -9/Mines Resources | -11 -10 -10 -10 -9 ----------- Run | Yrd Mat Min Exi Min Matter Collected 641 | 337 33 232 . 39 Remotely . | . . . . . Salvage Created 412 | 188 33 145 . 46 Parts 30 | 17 1 7 . 5 Haulers Intercepted . | . . . . . Recyclers Shooed . | . . . . . Parts Field Recycled . | . . . . . Retrieved Matter . | . . . . . Parts Self-Destructed . | . . . . . Prevented . | . . . . . Kills | -11 -10 -10 -10 -9 ------- Run | Yrd Mat Min Exi Min Combat Hostiles Destroyed 10 | . 1 5 . 4 Guns 7 | . 1 4 . 2 AOE 3 | . . 1 . 2 Classes Destroyed 4 | 1 1 1 . 1 Tunneler 8 | 8 . . . . Swarmer 6 | . . 3 . 3 Grunt 3 | . 1 2 . . Assembled 1 | . . . . 1 Best Kill Streak 3 | 3 1 3 . 3 Combat Bots Only 3 | . 1 3 . 3 Max Kills in Single Turn 2 | 1 1 1 . 2 Gunslinging . | . . . . . Exploded 2 | . . 1 . 2 Melee . | . . . . . Uniques/NPCs Destroyed . | . . . . . Combat | -11 -10 -10 -10 -9 -------- Run | Yrd Mat Min Exi Min Hostile Shots Fired 91 | . 2 38 . 51 Missed 15 | . . 7 . 8 Hits 76 | . 2 31 . 43 Melee 12 | . . . . 12 Projectile 64 | . 2 31 . 31 Critical Strikes 4 | . . 3 . 1 Part Disruptions 2 | . . . . 2 Damage Taken 1257 | . 118 360 . 779 Core 261 | . 35 105 . 121 Absorbed by Shields . | . . . . . Ignored by Resistances 2 | . . . . 2 Core Remaining (%) 100 | 100 . . . . Volleys Fired 49 | 19 5 15 . 10 Largest 2 | 2 2 2 . 2 Hottest 89 | 40 40 60 . 89 Shots Fired 90 | 38 10 28 . 14 Gun 90 | 38 10 28 . 14 Cannon . | . . . . . Launcher . | . . . . . Special . | . . . . . Kinetic 82 | 38 10 24 . 10 Thermal 3 | . . . . 3 Explosive . | . . . . . Electromagnetic 5 | . . 4 . 1 Robot Hit Streak 7 | 6 4 7 . 3 Robot Miss Streak 3 | 3 2 3 . 3 Penetration Max . | . . . . . Secondary Targets . | . . . . . Shots Hit Robots 55 | 22 6 19 . 8 Core Hits 26 | 12 3 7 . 4 Critical Kills . | . . . . . Critical Parts Destroyed . | . . . . . Critical Strikes . | . . . . . Melee Attacks 2 | . . . . 2 Impact . | . . . . . Slashing . | . . . . . Piercing 2 | . . . . 2 Sneak Attacks . | . . . . . Combat Hostiles . | . . . . . Follow-up Attacks . | . . . . . Damage Inflicted 784 | 244 67 280 . 193 Guns 631 | 244 67 222 . 98 Cannons . | . . . . . Explosions 118 | . . 58 . 60 Melee 35 | . . . . 35 Ramming . | . . . . . Kinetic 544 | 244 67 184 . 49 Thermal 156 | . . 58 . 98 Explosive . | . . . . . Electromagnetic 49 | . . 38 . 11 Impact . | . . . . . Slashing . | . . . . . Piercing 35 | . . . . 35 Highest Corruption . | . . . . . Average Corruption . | . . . . . Corruption Purged . | . . . . . Corruption Blocked . | . . . . . Overload Shots . | . . . . . Overflow Damage 44 | . . 26 . 18 Projectiles . | . . . . . Explosions 44 | . . 26 . 18 Melee . | . . . . . Knockbacks . | . . . . . Impact . | . . . . . Kinetic . | . . . . . Secondary . | . . . . . Self-Inflicted Damage 72 | . . 37 . 35 Shots 2 | . . 1 . 1 Rammed . | . . . . . Targets Rammed . | . . . . . Kicked . | . . . . . Crushed . | . . . . . Highest Temperature 89 | . 6 46 . 89 Average Temperature 24 | . 6 20 . 36 Received Heat Transfer 239 | . 12 147 . 80 Siege Activations . | . . . . . Martial Activations . | . . . . . Shielding Activations . | . . . . . Robots Disrupted . | . . . . . Combat Hostiles . | . . . . . Robots Corrupted . | . . . . . Combat Hostiles . | . . . . . Parts Fried . | . . . . . Impact Corruptions . | . . . . . Robots Melted . | . . . . . Combat Hostiles . | . . . . . Parts Melted . | . . . . . Heat Transferred 224 | . . 50 . 174 Parts Sabotaged . | . . . . . Parts Stolen . | . . . . . Parts Stripped . | . . . . . Power Chain Reactions 2 | . . 1 . 1 Alert | -11 -10 -10 -10 -9 ------- Run | Yrd Mat Min Exi Min Maximum Alert Level . | . . . . . Low Security (%) 100 | 100 100 100 . 100 Level 1 . | . . . . . Level 2 . | . . . . . Level 3 . | . . . . . Level 4 . | . . . . . Level 5 . | . . . . . High Security . | . . . . . Max Security . | . . . . . Peak Influence 77 | 10 30 76 . 77 Initial 3 | . . 3 . . Average 12 | 1 3 36 . 12 Influence Increases 296 | 40 46 123 . 87 Destroy 0b10 Robot/C 180 | . 20 100 . 60 Destroy 0b10 Robot/NC 40 | 40 . . . . Destroy Leader 40 | . 10 20 . 10 Successful Hack 16 | . 16 . . . Disable Machine 15 | . . . . 15 Destroy Structure 5 | . . 3 . 2 Influence Decreases 296 | 40 36 127 6 87 Entered New Map 13 | . . 7 6 . Time Decay 243 | 40 26 100 . 77 Lost Part 40 | . 10 20 . 10 Squads Dispatched 1 | . 1 . . . Investigation . | . . . . . Extermination . | . . . . . Reinforcement 1 | . 1 . . . Assault . | . . . . . Garrison . | . . . . . Intercept . | . . . . . Searches Triggered . | . . . . . Construction Impeded . | . . . . . Haulers Reinforced . | . . . . . Active Scanning Responses . | . . . . . Cargo Convoy Interrupts . | . . . . . Stealth | -11 -10 -10 -10 -9 --------- Run | Yrd Mat Min Exi Min Distress Signals . | . . . . . Communications Jammed . | . . . . . Distress Signals . | . . . . . Times Spotted 26 | . 8 5 . 13 Peak Tracking Total 5 | . 3 3 . 5 Tactical Retreats 2 | . . . . 2 Traps | -11 -10 -10 -10 -9 ------- Run | Yrd Mat Min Exi Min Traps Triggered 2 | . 1 . . 1 Indirectly . | . . . . . Trap Hack Attempts . | . . . . . Triggered . | . . . . . Disarmed . | . . . . . Reprogrammed . | . . . . . Reused . | . . . . . Traps Extracted . | . . . . . Installed . | . . . . . Triggered . | . . . . . Machines | -11 -10 -10 -10 -9 ---------- Run | Yrd Mat Min Exi Min Machines Disabled 1 | . . . . 1 Max in Single Turn 1 | . . . . 1 Machines Repaired . | . . . . . Machines Dismantled . | . . . . . Machines Sabotaged . | . . . . . Overloaded Fab Kills . | . . . . . Hacking | -11 -10 -10 -10 -9 --------- Run | Yrd Mat Min Exi Min Machines Accessed 5 | . 2 . 2 1 Terminals 2 | . 2 . . . Fabricators . | . . . . . Repair Stations . | . . . . . Recycling Units . | . . . . . Scanalyzers . | . . . . . Garrison Access . | . . . . . Total Hacks 13 | . 6 . 6 1 Successful 10 | . 3 . 6 1 Failed 3 | . 3 . . . Catastrophic . | . . . . . Database Lockouts . | . . . . . Manual 7 | . 6 . 1 . Terminals 6 | . 6 . . . Fabricators . | . . . . . Repair Stations . | . . . . . Recycling Units . | . . . . . Scanalyzers . | . . . . . Garrison Access . | . . . . . Terminal Hacks 9 | . 2 . 6 1 Record 5 | . . . 5 . Robot Analysis 2 | . 2 . . . Open Door 1 | . . . . 1 Proto ID Catalog 1 | . . . 1 . Fabricator Hacks . | . . . . . Repair Station Hacks . | . . . . . Recycling Unit Hacks . | . . . . . Scanalyzer . | . . . . . Garrison Access Hacks . | . . . . . Unauthorized Hacks 1 | . 1 . . . Terminals 1 | . 1 . . . Botnet 1 | . 1 . . . Fabricators . | . . . . . Repair Stations . | . . . . . Recycling Units . | . . . . . Scanalyzers . | . . . . . Garrison Access . | . . . . . Data Cores Recovered . | . . . . . Used . | . . . . . Hacking Detections 2 | . 2 . . . Full Trace Events . | . . . . . Feedback Events . | . . . . . Feedback Blocked . | . . . . . Robot Schematics Acquired . | . . . . . Robots Built . | . . . . . Authchips . | . . . . . Time . | . . . . . Total Robot Build Rating . | . . . . . Part Schematics Acquired . | . . . . . Parts Built . | . . . . . Authchips . | . . . . . Time . | . . . . . Total Part Build Rating . | . . . . . Parts Repaired . | . . . . . Time . | . . . . . Parts Recycled . | . . . . . Recycled Matter . | . . . . . Retrieved Matter . | . . . . . Retrieved Components . | . . . . . Parts Scanalyzed . | . . . . . Part Schematics Acquired . | . . . . . Parts Damaged . | . . . . . Bothacking | -11 -10 -10 -10 -9 ------------ Run | Yrd Mat Min Exi Min Used RIF Installer . | . . . . . Robots Hacked . | . . . . . Non-combat . | . . . . . Combat . | . . . . . Robot Hacks Applied . | . . . . . Relay Couplers Released . | . . . . . Fabnet Peak Effective % . | . . . . . Robots Rewired . | . . . . . Allies Hacked . | . . . . . Hacks Repelled . | . . . . . Allies | -11 -10 -10 -10 -9 -------- Run | Yrd Mat Min Exi Min Total Allies 2 | . . 2 . . Largest Group 2 | . . 2 2 . Highest-Rated Group 48 | . . 48 48 . Highest-Rated Ally 31 | . . 31 31 . Total Orders . | . . . . . Ally Attacks . | . . . . . Total Damage . | . . . . . Kills . | . . . . . Allies Corrupted . | . . . . . Allies Melted . | . . . . . Intel | -11 -10 -10 -10 -9 ------- Run | Yrd Mat Min Exi Min Active Infowar (turns) 1226 | 12 219 210 301 484 Seismic 1226 | 12 219 210 301 484 Robot Analysis Total 2 | . 2 . . . Derelict Logs Recovered . | . . . . . Drone Launches . | . . . . . Drone Recoveries . | . . . . . Exploration | -11 -10 -10 -10 -9 ------------- Run | Yrd Mat Min Exi Min Turns Passed 1497 | 276 219 210 301 491 Spaces Moved 834 | 124 141 130 251 188 Core 13 | 13 . . . . Treads . | . . . . . Legs 821 | 111 141 130 251 188 Wheels . | . . . . . Hover . | . . . . . Flight . | . . . . . Fastest Speed 50 | 50 120 120 120 120 Average Speed 127 | 112 120 120 120 160 Slowest Speed 260 | 120 120 120 120 260 Overloaded Moves . | . . . . . Propulsion Burnouts . | . . . . . Robots Hopped . | . . . . . Potential Cave-ins . | . . . . . Cave-ins Triggered . | . . . . . Exploration Rate (%) 36 | 5 37 28 62 51 Regions Visited 4 Branch Regions 3 Pre-discovered Areas 1 | . . . 1 . Known Exits Taken . | . . . . . Unknown Exits Taken 4 | 1 1 1 1 . Scrap Searched . | . . . . . Spaces Dug . | . . . . . Terrain Destroyed 5 | . . 3 . 2 Melee . | . . . . . Projectile . | . . . . . AOE 5 | . . 3 . 2 Terrain Rammed . | . . . . . Walls Destroyed . | . . . . . Machines Disabled . | . . . . . Actions | -11 -10 -10 -10 -9 --------- Run | Yrd Mat Min Exi Min Total 1180 | 225 182 158 251 364 Wait 253 | 66 29 10 . 148 Move 830 | 123 140 129 250 188 Hop . | . . . . . Pick Up 25 | 9 5 2 1 8 Fast Attach . | . . . . . Attach 17 | 7 1 2 . 7 Detach . | . . . . . Swap 2 | 1 1 . . . Drop 2 | . 1 . . 1 Fire 49 | 19 5 15 . 10 Melee 2 | . . . . 2 Ram . | . . . . . Kick . | . . . . . Crush . | . . . . . Escape Stasis . | . . . . . Rewire . | . . . . . Trap . | . . . . . Miscellaneous . | . . . . . Route ------- -11/Scrapyard -10/Materials -10/Mines (discovered 2 exits: [*Mat] / *Exi) -10/Exiles -9/Mines History --------- Turn | Location | Event 10 | -11/Scrapyard | Discovered new exit (range 15) 277 | -11/Scrapyard | Entered Materials 305 | -10/Materials | Build established: Mutant 430 | -10/Materials | Discovered new exit (range 14) 496 | -10/Materials | Entered Mines 560 | -10/Mines | Core integrity fell below 50% 671 | -10/Mines | Discovered new exit (range 13) 692 | -10/Mines | Deemed a non-threat by the Exiles lab entrance 693 | -10/Mines | Discovered new exit (range 5) 706 | -10/Mines | Entered Exiles 706 | -10/Exiles | Accompanied by 2 allies 736 | -10/Exiles | Led the pair of lost Derelicts to a safe place 736 | -10/Exiles | Met 8R-AWN 754 | -10/Exiles | Met EX-HEX 804 | -10/Exiles | Met EX-DEC 808 | -10/Exiles | Learned location of Zion (-6) 831 | -10/Exiles | Met EX-BIN 848 | -10/Exiles | Aligned with FarCom system 849 | -10/Exiles | Given EX-Vault access code 877 | -10/Exiles | Opened EX-Vault 885 | -10/Exiles | Found Skeleton Box 911 | -10/Exiles | Warned to stay clear of 0b10 Research branches 992 | -10/Exiles | Discovered new exit (range 14) 1007 | -10/Exiles | Left Exiles lab with Skeleton Box 1007 | -10/Exiles | Entered Mines 1047 | -9/Mines | Met a Derelict bent on vengeance 1100 | -9/Mines | Met a Derelict who couldn't figure out how to use a Trap Extractor 1387 | -9/Mines | Assembled infested the area 1392 | -9/Mines | Assisted by a Guerilla fighting off Assembled 1487 | -9/Mines | Lost 4 parts (1p2n1w) 1498 | -9/Mines | Core integrity fell below 20% 1498 | -9/Mines | Destroyed by as-49376 with Assembled Blade Last Messages --------------- 01392_ A derelict emerges from the shadows: "You need to get out of here! I've been tracking a group of Assembled to figure out where they're coming from, and they're closing on this area, come on!" 01399_ K-01 Serf collects debris. 01404_ T-07 Excavator destroyed. 01404_ K-01 Serf collects debris. 01416_ T-07 Excavator suffers critical hit (Destroy). 01449_ Aluminum Leg destroyed. 01451_ Lgt. Assault Rifle destroyed. 01456_ Mic. Nuclear Core destroyed. 01475_ Acquired 3 matter. 01480_ H3-161(h) destroyed. 01484_ as-15638 destroyed. 01491_ Aluminum Leg destroyed. 01491_ Seismic Detector destroyed. 01492_ Hvy. Laser destroyed. 01496_ Med. Reflective Plating severed. Map ----- +----------------------------------------------------+ | ???## #????????????# ###????? | | ???# #???????????## #????? | | ???# #???????????# #???? | | ???# ##?????###### ####### #???? | | ??## ####### ## #??????# #??? | | ?## ## #???????# #??? | | ?# ## ####????????##??? | | ?# ##### # #???????????????? | | ?# ##???## ##=%* #???????????????? | | ??# ##?????######*|##???????????????? | | ??## ###???????????#=##????????????????? | | ???## ##?????????????#%#?????????????????? | | ???## #??????????????#=!?????????????????? | | ?### #??????????????###?????????????????? | | ?# #????#####?????????????????????????? | | ?# ##????# ##????????????????????????? | | ?# #????## #????????????????????????? | | ?## ##?### #????????????????????????? | | ??## ### #????????????????????????? | | ??## #?????????????????????????? | | ??# #######???????????????????? | | ?# ;" #???????????????????? | | ?# ##### % #####???????????????????? | | ?## ##???### ##?????????????????????? | | ??## ##?????#"# a###;!%#???????????????? | | ???# #???????## @a% %a%!#???????????????? | | ???## ?????????# a#######???????????????? | | ????###?????????## ##?????????????????????? | | ?????????????????####??????????????????????? | | ???????????????????????????????????????????? | | ???????????????????????????????????????????? | | ???????????????????????????????????????????? | | ???????????????????????????????????????????? | | ???????????????????????????????????????????? | | ???????????????????????????????????????????? | | ???????????????????????????????????????????? | | ???????????????????????????????????????????? | | ???????????????????????????????????????????? | | ???????????????????????????????????????????? | | ???????????????????????????????????????????? | | | | | | | | | | | | | | | | | | | | | +----------------------------------------------------+ Best States ------------- Heat Dissipation 25 Energy Generation 15 Energy Capacity 250 Matter Stores 300 Matter Capacity 300 Sight Range 16 Terrain Scan Density 10 Evasion (%) 55 Item Schematics ----------------- None Robot Schematics ------------------ None Fabricated ------------ Nothing Repaired ---------- Nothing Alien Tech Used ----------------- None Achievements -------------- None Challenges ------------ None Game ------ Seed CooledRingTelecube Manual? 0 Play Time 00:14:31 Cumulative 64.5 hours Start 2025.06.17 @ 15:58:00 End 2025.06.17 @ 16:15:00 Sessions 1 Manual Loads 0 Difficulty Rogue Special Mode Halloween2020/ForbiddenLore Game No. 56 Rogue 37 Adventurer 0 Explorer 19 Win Type - Total 0 Types 0/0/0/0/0/0/0/0/0/0 Lore% 53 Gallery% 42 Achievement% 67 Wizard Run 0 Options --------- Layout 1 ASCII 0 Keyboard 0 Movement Mouse Keybinds 0 Fullscreen 2 Font 16/SmallcapsGlow Map View 50x40 Zoom Use 0% Tactical HUD 1 Map Filters NONE Filters NONE Steam SD RUN: d9ecffbd-fb2f-4198-9e66-625860d46b28